{"text_format":"1","workbook":"xlsx","n_sheets":1,"sheets":["MV ontv. bodem obv v.o."],"not_rendered":{"charts":0,"images":0,"macros":1,"external_links":0,"defined_names":3,"comments":1,"pivot_tables":0},"unopened":[],"bounds":{"document_bytes":16777216,"sheet_cells":100000,"rows_first":2000,"rows_last":500,"rows_between":2000,"halvings":0,"cell_chars":16384,"cell_head_chars":4096},"cells_cut":0,"cells_raw":0,"read":"whole","date_system":"1900"}

{"sheet":"MV ontv. bodem obv v.o.","index":0,"n_rows":158,"n_cols":35,"rows_kept":158,"cut":false,"hidden":false,"merged":[[36,1,36,8],[46,7,46,8],[92,1,101,7],[38,1,38,8],[50,6,50,8],[51,6,51,7],[56,1,57,8],[50,1,52,3],[46,1,46,5],[60,6,60,8],[69,4,70,9],[52,6,54,8],[48,1,48,2],[39,1,40,8],[42,1,43,8],[41,2,41,8],[45,1,45,8],[19,1,19,8],[26,1,26,2],[0,1,0,8],[2,1,2,8],[20,1,20,8],[21,1,21,8],[15,1,15,8],[16,1,16,8],[17,1,17,8],[5,6,6,8],[7,4,7,8],[22,1,22,8],[10,1,10,8],[12,1,12,8],[23,7,23,8],[23,3,23,5],[24,7,24,8],[27,16,27,17],[26,6,26,8],[31,1,31,3],[35,1,35,8],[34,1,34,8],[27,1,27,2],[26,3,26,4],[27,3,27,4],[29,1,29,3],[26,16,26,17],[33,1,33,8]]}
[null,"Milieuverklaring (bestemd voor eenmalig gebruik)",null,null,null,null,null,null,null,null,null,"Rbk 2022, par. 7.1 MV op grond van een Bodemonderzoek"]
[]
[null,"Verklaring gebaseerd op een bodemonderzoek",null,null,null,null,null,null,null,null,null,"Rbk, par. 7.1"]
[]
[]
[null,"Uniek nummer van de verklaring:",null,null,null,null,"<nummer>",null,null,null,null,"Rbk, art. 7.11 g",{"$f":"IF(G6=\"<nummer>\",1,0)","v":1}]
[null,null,null,null,null,null,null,null,null,null,null,null,null,null,null,null,null,null,null,"Grond",{"$f":"IF(N42=1,\"Industrie\",\"[rolmenu ↓]\")","v":"[rolmenu ↓]"},null,null,"[rolmenu ↓]"]
[null,"Deze verklaring heeft betrekking op ",null,null,"de ontvangende bodem",null,null,null,null,null,null,"Rbk, art. 7.11 a",null,null,null,null,null,null,null,null,"Landbouw/Natuur (AW2000)",null,null,"0,0-0,5 m-mv"]
[null,null,null,null,null,null,null,null,null,null,null,null,null,null,null,null,null,null,null,null,"Wonen",null,null,"0,5-2,0 m-mv"]
[null,"Beperking van de geldigheid van de MV",null,null,null,null,null,null,null,null,null,null,null,null,null,null,null,null,null,null,"Industrie",null,null,"anders:"]
[null,"Een verklaring op grond van een bodemonderzoek wordt voor de toepassingslocatie niet afgegeven als voor de bodem op de toepassingslocatie al een milieuverklaring op grond van een bodemkwaliteitskaart is afgegeven.",null,null,null,null,null,null,null,null,null,"Rbk, art. 7.10 lid 1",null,null,null,null,null,null,null,null,"Matig verontreinigd"]
[null,null,null,null,null,null,null,null,null,null,null,null,null,null,null,null,null,null,null,null,"Sterk verontreinigd"]
[null,"Een verklaring op grond van een bodemonderzoek wordt alleen afgegeven voor het deel van de toepassingslocatie dat in haar geheel in dezelfde kwaliteitsklasse kan worden ingedeeld.",null,null,null,null,null,null,null,null,null,"Rbk, art. 7.10 lid 3",null,null,null,null,null,null,null,null,"Niet-toepasbaar"]
[null,null,null,null,null,null,null,null,null,null,null,null,null,null,null,null,null,null,null,null,"n.v.t."]
[null,"Naam en adres van de persoon die onderhavige verklaring afgeeft",null,null,null,null,null,null,null,null,null,"Rbk, art. 7.11 c"]
[null,"<naam>",null,null,null,null,null,null,null,null,null,null,{"$f":"IF(B16=\"<naam>\",1,0)","v":1}]
[null,"<postcode en plaats>",null,null,null,null,null,null,null,null,null,null,{"$f":"IF(B17=\"<postcode en plaats>\",1,0)","v":1}]
[null,"<straatnaam en nummer>",null,null,null,null,null,null,null,null,null,null,{"$f":"IF(B18=\"<straatnaam en nummer>\",1,0)","v":1}]
[]
[null,"Aanduiding en omschrijving van de toepassingslocatie:",null,null,null,null,null,null,null,null,null,"Rbk, art. 7.11 f onder 1",null,null,null,null,null,null,null,"Brunssum","BKK"]
[null,"<omschrijvende benaming>",null,null,null,null,null,null,null,null,null,null,{"$f":"IF(B21=\"<omschrijvende benaming>\",1,0)","v":1},null,null,null,null,null,null,"Brunssum","BKK"]
[null,"<postcode en plaats>",null,null,null,null,null,null,null,null,null,null,{"$f":"IF(B22=\"<postcode en plaats>\",1,0)","v":1},null,null,null,null,null,null,"Eijsden-Margraten","BKK"]
[null,"<straatnaam en nummer>",null,null,null,null,null,null,null,null,null,null,{"$f":"IF(B23=\"<straatnaam en nummer>\",1,0)","v":1},null,null,null,null,null,null,"Gulpen-Wittem","BKK"]
[null,"Kadastrale gemeente:",null,"<kadastrale gemeente>",null,null,"<sectie>","<nummer>",null,null,null,null,{"$f":"IF(D24=\"<kadastrale gemeente>\",1,0)","v":1},{"$f":"IF(G24=\"<sectie>\",1,0)","v":1},{"$f":"IF(H24=\"<nummer>\",1,0)","v":1},null,null,null,null,"Kerkrade","BKK"]
[null,null,null,null,null,null,"<sectie>","<nummer>",null,null,null,null,null,{"$f":"IF(G25=\"<sectie>\",1,0)","v":1},{"$f":"IF(H25=\"<nummer>\",1,0)","v":1}]
[null,"Coördinaten",null,null,null,null,null,null,null,null,{"$f":"IF(H24=\"<nummer>\",1,0)","v":1},null,{"$f":"IF(G24=\"<sectie>\",1,0)","v":1},null,null,null,null,null,null,"Landgraaf","BKK"]
[null,"X-coördinaat",null,"<coordinaat>",null,{"$f":"IF(ISNUMBER(D27)=TRUE,\"=GPS\",\"\")","v":""},{"$f":"IF(ISNUMBER(D28)=TRUE,AH29,\"\")","v":""},null,null,null,null,null,{"$f":"IF(D27=\"<coordinaat>\",1,0)","v":1},null,null,null,"<X-coördinaat>",null,null,"Maastricht","BKK",null,null,null,null,null,null,null,null,null,{"$f":"IF(D27=\"<coordinaat>\",\"\",IF(D27>0,(52.15517+(SUM((((((3235.65389*((D28-463000)*10^-5))+(-32.58297*((D27-155000)*10^-5)^2)+(-0.2475*((D28-463000)*10^-5)^2)+(-0.84978*((D27-155000)*10^-5)^2*((D28-463000)*10^-5))+(-0.0655*((D28-463000)*10^-5)^3)+(-0.01709*((D27-155000)*10^-5)^2*((D28-463000)*10^-5)^2)+(-0.00738*((D27-155000)*10^-5))+(0.0053*((D27-155000)*10^-5)^4)+(-0.00039*((D27-155000)*10^-5)^2*((D28-463000)*10^-5)^3)+(0.00033*((D27-155000)*10^-5)^4*((D28-463000)*10^-5))+(-0.00012*((D27-155000)*10^-5)*((D28-463000)*10^-5)))))))/3600)),\"\"))","v":""},{"$f":"TRUNC(AE27)","v":{"$error":"#VALUE!"}},{"$f":"TRUNC((AE27-TRUNC(AE27))*100000000)","v":{"$error":"#VALUE!"}},{"$f":"AF27&\".\"&AG27","v":{"$error":"#VALUE!"}}]
[null,"Y-coördinaat",null,"<coordinaat>",null,null,null,null,null,null,null,null,{"$f":"IF(D28=\"<coordinaat>\",1,0)","v":1},null,null,null,"<Y-coördinaat>",null,null,"Meerssen","BKK",null,null,null,null,null,null,null,null,null,{"$f":"IF(D28=\"<coordinaat>\",\"\",IF(D28>0,(5.387206+(SUM((((((5260.52916*((D27-155000)*10^-5))+(105.94684*((D27-155000)*10^-5)*((D28-463000)*10^-5))+(2.45656*((D27-155000)*10^-5)*((D28-463000)*10^-5)^2)+(-0.81885*((D27-155000)*10^-5)^3)+(0.05594*((D27-155000)*10^-5)*((D28-463000)*10^-5)^3)+(-0.05607*((D27-155000)*10^-5)^3*((D28-463000)*10^-5))+(0.01199*((D28-463000)*10^-5))+(-0.00256*((D27-155000)*10^-5)^3*((D28-463000)*10^-5)^2)+(0.00128*((D27-155000)*10^-5)*((D28-463000)*10^-5)^4)+(0.00022*((D28-463000)*10^-5)^2)+(-0.00022*((D27-155000)*10^-5)^2)+(0.00026*((D27-155000)*10^-5)^5))))))/3600)),\"\"))","v":""},{"$f":"TRUNC(AE28)","v":{"$error":"#VALUE!"}},{"$f":"TRUNC((AE28-TRUNC(AE28))*10000000)","v":{"$error":"#VALUE!"}},{"$f":"AF28&\".\"&AG28","v":{"$error":"#VALUE!"}}]
[null,"De toepassing vindt plaats in de bodemlaag:",null,null,null,null,null,null,null,null,null,null,null,null,null,null,null,null,null,"Simpelveld","BKK",null,null,null,null,null,null,null,null,null,null,null,null,{"$f":"AH27&\", \"&AH28","v":{"$error":"#VALUE!"}}]
[null,"[rolmenu ↓]",null,null,null,null,null,null,null,null,null,null,{"$f":"IF(B30=\"[rolmenu ↓]\",1,0)","v":1},null,null,null,null,null,null,"Sittard-Geleen","Bodemkwaliteits- en bodemfunctieklassenkaart gemeente Sittard-Geleen 2021-2025"]
[null,"Het unieke nummer van het rapport van het bodemonderzoek (vo) NEN5740",null,null,null,null,null,null,null,null,null,"Rbk, art. 7.11 d",null,null,null,null,null,null,null,"Stein","Bodemfunctieklassenkaart en bodemkwaliteitskaart Gemeenten Beek, Beekdaelen en Stein",null,null,null,null,null,null,null,null,null,null,null,null,null,"Wonen \"nieuw\""]
[null,"<uniek nummer rapport>",null,null,null,null,null,null,null,null,null,null,{"$f":"IF(B32=\"<uniek nummer rapport>\",1,0)","v":1},null,null,null,null,null,null,"Vaals","BKK",null,null,null,null,null,null,null,null,null,null,null,null,null,"Industrie"]
[null,"Naam en adres van de persoon die het bodemonderzoek heeft verricht",null,null,null,null,null,null,null,null,null,"Rbk, art. 7.11 b",null,null,null,null,null,null,null,"Valkenburg a/d Geul","BKK",null,null,null,null,null,null,null,null,null,null,null,null,null,"Buitengebied"]
[null,"<naam bureau en naam contactpersoon>",null,null,null,null,null,null,null,null,null,null,{"$f":"IF(B34=\"<naam bureau en naam contactpersoon>\",1,0)","v":1}]
[null,"<postcode en plaats>",null,null,null,null,null,null,null,null,null,null,{"$f":"IF(B35=\"<postcode en plaats>\",1,0)","v":1},null,null,null,null,null,null,"Voerendaal","BKK"]
[null,"<straatnaam en nummer>",null,null,null,null,null,null,null,null,null,null,{"$f":"IF(B36=\"<straatnaam en nummer>\",1,0)","v":1},null,null,null,null,null,null,"IMD-BNS","Bodemfunctieklassenkaart en bodemkwaliteitskaart Gemeenten Beek, Beekdaelen en Stein"]
[null,"In het bodemonderzoek NEN4750 is een vooronderzoek conform NEN5725/NEN5717 opgenomen.",null,null,null,null,null,null,null,null,null,null,null,null,null,null,null,null,null,"Mook en Middelaar","BKK"]
[null,null,{"$f":"IF(M38=TRUE,\"ja\",\"nee\")","v":"ja"},null,null,null,null,null,null,null,null,null,true,null,null,null,null,null,null,"Venray","BKK"]
[null,{"$f":"IF(M38=FALSE,\"De milieuverklaring kan niet afgegeven worden.\",\"\")","v":""},null,null,null,null,null,null,null,null,null,null,null,null,null,null,null,null,null,"Horst aan de Maas","BKK"]
[null,"De ontvangende bodem wordt ingedeeld in de slechtste kwaliteitsklasse waarin een van de onderzochte stoffen is ingedeeld (NB de N,T-toets is van toepassing).",null,null,null,null,null,null,null,null,null,"Rbk, art. 7.8 lid 4"]
[]
[null,null,"het volgende is van toepassing indien aangevinkt",null,null,null,null,null,null,null,null,"Rbk, art. 7.11 lid f onder 3",false,{"$f":"IF(M42=TRUE,1,0)","v":0}]
[null,"De bodem wordt in de kwaliteitsklasse Industrie ingedeeld als uit het vooronderzoek is gebleken dat voor de toepassingslocatie of een gedeelte daarvan een onderzoeksstrategie uit NEN5740 voor verdachte locaties moest worden gevolgd.",null,null,null,null,null,null,null,null,null,"Rbk, art. 7.8 lid 11"]
[]
[]
[null,"De ontvangende bodem is ingedeeld in de kwaliteitsklasse:",null,null,null,null,null,null,null,null,null,null,null,null,null,null,null,null,null,null,null,null,null,"PFAS"]
[null,"[rolmenu ↓]",null,null,null,null,"PFAS:","[rolmenu ↓]",null,null,null,null,{"$f":"IF(B47=\"[rolmenu ↓]\",1,0)","v":1},{"$f":"IF(H47=\"[rolmenu ↓]\",1,0)","v":1},null,null,null,null,null,"Peel en Maas","BKK",null,null,"[rolmenu ↓]"]
[null,null,null,null,null,null,null,null,null,null,null,null,null,null,null,null,null,null,null,null,null,null,null,"alle <d"]
[null,"Bij deze MV horen",null,0,"bijlagen",null,null,null,null,null,null,null,null,null,null,null,null,null,null,"Beesel","BKK",null,null,"<1,4-1,9-1,4"]
[null,null,null,null,null,null,null,null,null,null,null,null,null,null,null,null,null,null,null,"Leudal","BKK",null,null,"<3-7-3"]
[null,"(geautoriseerd) natuurlijk persoon die de milieuverklaring afgeeft",null,null,"naam:",null,"<naam>",null,null,null,null,"Rbk, art. 7.11 h",{"$f":"IF(G51=\"<naam>\",1,0)","v":1},null,null,null,null,null,null,"Weert","BKK",null,null,">3-7-3"]
[null,null,null,null,"datum:",null,"<datum>",null,"<uurtijd>",null,null,null,{"$f":"IF(G52=\"<datum>\",1,0)","v":1},null,null,null,null,null,null,"Roermond","BKK",null,null,"anders:"]
[null,null,null,null,"ondertekening:",null,"<handtekening>",null,null,null,null,null,{"$f":"IF(G53=\"<handtekening>\",1,0)","v":1},null,null,null,null,null,null,"Maasgouw","BKK"]
[null,null,null,null,null,null,null,null,null,null,null,null,{"$f":"IF(I52=\"<uurtijd>\",1,0)","v":1},null,null,null,null,null,null,"Roerdalen","BKK"]
[null,null,null,null,null,null,null,null,null,null,null,null,null,null,null,null,null,null,null,"Echt-Susteren","BKK"]
[null,null,null,null,null,null,null,null,null,null,null,null,null,null,null,null,null,null,null,"Servicecentrum MER","BKK"]
[null,"Disclaimer. Deze verklaring is geldig op het moment van ondertekening. Wat er daarna met de ontvangende bodem gebeurt is voor verantwoordelijkheid van de daadwerkelijke uitvoerder.",null,null,null,null,null,null,null,null,null,null,null,null,null,null,null,null,null,"volgt","BKK"]
[]
[]
[]
[]
[]
[]
[]
[]
[]
[]
[]
[]
[]
[]
[]
[]
[]
[]
[]
[]
[]
[]
[]
[]
[]
[]
[]
[]
[]
[]
[]
[]
[]
[]
[]
[null,"Disclaimer. Deze verklaring is geldig op het moment van ondertekening. Wat er daarna met de partij gebeurt is voor verantwoordelijkheid van de daadwerkelijke uitvoerder."]
[]
[]
[]
[]
[]
[]
[]
[]
[]
[]
[]
[]
[]
[]
[]
[]
[]
[]
[]
[]
[]
[]
[]
[]
[]
[]
[]
[]
[]
[]
[]
[]
[]
[]
[]
[]
[]
[]
[]
[]
[]
[]
[]
[]
[]
[]
[]
[]
[]
[]
[]
[]
[]
[]
[]
[]
[]
[]
[]
[]
[]
[]
[]
[]
[null,"nog aanpassen _> Deze Milieuhygiënische verklaring is maximaal 3 jaar geldig na de datum van uitgifte en u dient deze minimaal 5 jaar te bewaren. Nadere specificaties over de partij zijn op te vragen bij de certificaathouder. Beslis tijdig of u een eigen onderzoek op de partij wilt uitvoeren en laat dit aan de certificaathouder weten. Op grond van artikel 42 van het Besluit bodemkwaliteit dient het voornemen tot toepassen van de partij minimaal vijf dagen voor de werkelijke toepassing gemeld te worden via www.meldpuntbodemkwaliteit.nl (behalve als er sprake is van een vrijstelling zoals genoemd onder lid 8 van genoemd artikel). Deze erkende Milieuhygiënische verklaring is de milieuhygiënische verklaring die bij de melding dient te worden gevoegd. Bij het splitsen van een partij gelden de administratieve bepalingen in artikel 4.3.1 van de Regeling bodemkwaliteit. Bij transport van grond of bagger moeten partijen die gelden als ‘afvalstof’ vergezeld gaan van een begeleidingsbrief, zoals bedoeld in de Wet milieubeheer en het Besluit en de Regeling melden bedrijfsafvalstoffen en gevaarlijke afvalstoffen. Zie voor verdere info www.lma.nl."]